bitfinex/quotes_BTCUSD_20250118
["timestamp","ask_amount","ask_price","bid_price","bid_amount"]
[1737184467728,0.5456,103030.0,103020.0,0.36894389]
[1737184468131,0.5456,103030.0,103020.0,0.39194389]
[1737184469453,0.5456,103030.0,103020.0,0.39237209]
[1737184469656,0.54649922,103030.0,103020.0,0.39237209]
[1737184469854,1.41109922,103030.0,103020.0,0.39237209]
[1737184473203,1.41109922,103030.0,103020.0,0.39925209]
[1737184474229,1.41109922,103030.0,103020.0,0.39237209]
[1737184474473,1.41109922,103030.0,103020.0,0.39925209]
[1737184476582,1.39869697,103030.0,103020.0,0.39925209]
[1737184476791,1.38913555,103030.0,103020.0,0.4295015]
[1737184479444,1.38913555,103030.0,103020.0,0.39237209]
[1737184479644,1.38913555,103030.0,103020.0,0.36937209]
[1737184479801,1.47622058,103030.0,103020.0,0.36937209]
[1737184480012,1.55592058,103030.0,103020.0,0.36937209]
[1737184480933,1.55592058,103030.0,103020.0,0.27013128]
[1737184481391,1.68654442,103030.0,103020.0,0.27498228]
[1737184482227,1.73174442,103030.0,103020.0,0.27498228]
[1737184483491,1.81884921,103030.0,103020.0,0.27498228]
[1737184484786,0.43061288,103030.0,103020.0,0.27498228]
[1737184487480,0.5173974,103030.0,103020.0,0.27498228]
[1737184488458,0.5173974,103030.0,103020.0,0.12498228]
[1737184488657,0.5173974,103030.0,103020.0,0.12546758]
[1737184489417,0.5173974,103030.0,103020.0,0.02839958]
[1737184489587,0.5173974,103030.0,103020.0,0.00831092]
[1737184490416,0.12579922,103030.0,103020.0,0.00831092]
[1737184490603,0.22285822,103030.0,103020.0,0.00831092]
[1737184491236,0.52209903,103030.0,103020.0,0.00831092]
[1737184491649,0.221977,103010.0,103000.0,0.0004284]
[1737184491851,0.32121781,103010.0,103000.0,0.0004284]
[1737184492059,0.42121781,103010.0,103000.0,0.0004284]
[1737184492231,0.57121781,103010.0,103000.0,0.0004284]
[1737184492441,0.0797,102970.0,102960.0,0.097121]
[1737184492619,0.0797,102970.0,102960.0,0.20575374]
[1737184492824,0.0797,102970.0,102960.0,0.22526983]
[1737184493651,0.16655691,102970.0,102960.0,0.23296165]
[1737184493858,0.16655691,102970.0,102960.0,0.23346453]
[1737184494379,0.0797,102970.0,102960.0,0.23346453]
[1737184494875,0.0797,102970.0,102960.0,0.13422372]
[1737184495081,0.0797,102970.0,102960.0,0.1265319]
[1737184495769,0.0797,102970.0,102960.0,0.2765319]
[1737184496003,0.0797,102970.0,102960.0,0.1265319]
[1737184496210,0.0797,102970.0,102960.0,0.02001897]
[1737184496824,0.1249,102970.0,102960.0,0.02001897]
[1737184497235,0.222015,102970.0,102960.0,0.02001897]
[1737184497840,0.1249,102970.0,102960.0,0.02001897]
[1737184499699,0.1249,102970.0,102960.0,0.03241947]
[1737184500278,0.42246971,102970.0,102960.0,0.00050288]
[1737184500536,0.42125581,102970.0,102960.0,0.00050288]
[1737184501882,0.52125581,102970.0,102960.0,0.00050288]
[1737184502149,0.91211193,102970.0,102960.0,0.00050288]
[1737184502980,0.91072695,102970.0,102960.0,0.00050288]
[1737184503407,0.0797,102960.0,102940.0,0.29191619]
[1737184503727,0.0797,102960.0,102940.0,0.0976798]
[1737184504137,0.176825,102960.0,102940.0,0.09719261]
[1737184504539,0.0797,102960.0,102940.0,0.29147961]
[1737184504967,0.29538031,102960.0,102940.0,0.29147961]
[1737184505245,0.29538031,102960.0,102940.0,0.29936924]
[1737184506719,0.29538031,102960.0,102950.0,0.09762126]
[1737184507184,0.29538031,102960.0,102950.0,0.097134]
[1737184507692,0.0797,102960.0,102950.0,0.10664801]
[1737184507832,0.0797,102960.0,102950.0,0.00951401]
[1737184509053,0.26305092,102960.0,102950.0,0.00951401]
[1737184509259,0.30925092,102960.0,102950.0,0.00788963]
[1737184509657,0.40849173,102960.0,102950.0,0.00788963]
[1737184509874,0.50849173,102960.0,102950.0,0.00788963]
[1737184510102,0.50849173,102960.0,102940.0,0.00774381]
[1737184510103,0.197134,102950.0,102940.0,0.00774381]
[1737184510303,0.20045506,102950.0,102920.0,0.01151482]
[1737184510508,0.1266,102940.0,102920.0,0.44212382]
[1737184510657,1.8636,102940.0,102920.0,0.44212382]
[1737184510863,1.8636,102940.0,102920.0,0.53927682]
[1737184511117,1.8636,102940.0,102920.0,0.85056164]
[1737184511290,1.8636,102940.0,102930.0,0.097153]
[1737184514646,0.1266,102940.0,102930.0,0.097153]
[1737184514964,0.1266,102940.0,102920.0,0.60275082]
[1737184515170,0.1266,102940.0,102930.0,0.097153]
[1737184515922,0.1266,102940.0,102930.0,0.09764069]
[1737184516119,0.1266,102940.0,102930.0,0.09806919]
[1737184517173,0.1266,102940.0,102930.0,0.0975815]
[1737184517330,0.0804,102940.0,102930.0,0.0975815]
[1737184517778,0.0804,102940.0,102930.0,0.09806907]
[1737184518136,0.0804,102940.0,102930.0,0.0975815]
[1737184518340,0.38939414,102960.0,102950.0,0.097134]
[1737184519380,0.38939414,102960.0,102950.0,0.09873633]
[1737184519797,0.44175715,102970.0,102950.0,0.29299933]
[1737184519798,0.21372578,102970.0,102950.0,0.29299933]
[1737184519999,0.21372578,102970.0,102940.0,0.538546]
[1737184520320,0.21372578,102970.0,102950.0,0.29188007]
[1737184521604,0.12749986,102970.0,102950.0,0.29188007]
[1737184522389,0.12749986,102970.0,102950.0,0.29673471]
[1737184523664,0.3268,102960.0,102950.0,0.29673471]
[1737184523868,0.3268,102960.0,102950.0,0.29928175]
[1737184524811,0.21372578,102970.0,102950.0,0.45139256]
[1737184525015,0.08712578,102970.0,102960.0,0.19685276]
[1737184525438,0.08712578,102970.0,102960.0,0.19636581]
[1737184525638,0.08712578,102970.0,102960.0,0.1968526]
[1737184526205,0.08712578,102970.0,102960.0,0.20474135]
[1737184526340,0.00089986,102970.0,102960.0,0.20474135]
[1737184526541,0.00089986,102970.0,102960.0,0.35474135]
[1737184526737,0.00089986,102970.0,102960.0,0.3844608]
[1737184526956,0.00089986,102970.0,102960.0,0.3923608]
[1737184527355,0.00089986,102970.0,102960.0,0.41050616]
[1737184528469,0.00089986,102970.0,102960.0,0.42211121]
[1737184531756,1.26442243,102980.0,102960.0,0.33378621]
[1737184532057,1.21582224,102980.0,102970.0,0.22740225]
[1737184532398,1.21582224,102980.0,102970.0,0.2600915]
[1737184532597,1.21582224,102980.0,102970.0,0.22994992]
[1737184532808,1.21582224,102980.0,102970.0,0.26008834]
[1737184533157,1.21521549,102980.0,102970.0,0.22238992]
[1737184533349,1.21521549,102980.0,102970.0,0.22994992]
[1737184533683,1.21521549,102980.0,102970.0,0.22691581]
[1737184535481,1.20690834,102980.0,102970.0,0.37691581]
[1737184535678,1.10252754,102980.0,102970.0,0.37691581]
[1737184535955,0.26322528,102990.0,102980.0,0.128006]
[1737184536146,0.26322528,102990.0,102980.0,0.22773291]
[1737184536327,0.26322528,102990.0,102980.0,0.22724681]
[1737184536467,0.26322528,102990.0,102980.0,0.19634681]
[1737184536671,0.34352528,102990.0,102980.0,0.19634681]
[1737184538319,0.34352528,102990.0,102980.0,0.22734965]
[1737184540521,0.0803,102990.0,102980.0,0.22734965]
[1737184540729,0.0803,102990.0,102980.0,0.12810884]
[1737184541193,0.0803,102990.0,102980.0,0.1311419]
[1737184541351,0.0803,102990.0,102980.0,0.02240588]
[1737184541672,0.1262,102990.0,102980.0,0.02240588]
[1737184541898,0.1262,102990.0,102980.0,0.00303306]
[1737184542305,0.223296,102990.0,102980.0,0.00303306]
[1737184543289,0.323296,102990.0,102980.0,0.00303306]
[1737184543488,0.52343645,102990.0,102980.0,0.00303306]
[1737184543851,0.225106,102980.0,102970.0,0.0004284]
[1737184545894,0.225106,102980.0,102970.0,0.00346146]
[1737184546477,0.128,102980.0,102970.0,0.00346146]
[1737184546682,0.128,102980.0,102970.0,0.10057646]
[1737184547724,0.128,102980.0,102970.0,0.00346146]
[1737184547930,0.128,102980.0,102970.0,0.10057646]
[1737184552391,0.128,102980.0,102970.0,0.19981727]
[1737184553599,1.5382,102980.0,102970.0,0.34981727]
[1737184556492,1.5382,102980.0,102970.0,0.3813691]
[1737184557312,1.5382,102980.0,102970.0,0.28212829]
[1737184557479,1.5382,102980.0,102970.0,0.3813691]
[1737184558911,1.4923,102980.0,102970.0,0.3813691]
[1737184559132,1.4923,102980.0,102970.0,0.27041303]
[1737184559549,1.4923,102980.0,102970.0,0.02329803]
[1737184559721,1.4923,102980.0,102930.0,0.0004285]
[1737184559722,0.8646,102940.0,102930.0,0.0004285]
[1737184559924,0.8646,102940.0,102930.0,0.42133938]
[1737184560242,0.8646,102940.0,102930.0,0.44197699]
[1737184560550,0.8646,102940.0,102930.0,0.29197699]
[1737184561172,0.8646,102940.0,102930.0,0.29683215]
[1737184561421,1.4102,102940.0,102930.0,0.11432877]
[1737184561623,1.4102,102940.0,102930.0,0.26432877]
[1737184562107,1.4102,102940.0,102930.0,0.10253515]
[1737184563313,1.4102,102940.0,102930.0,0.00538215]
[1737184563487,1.585943,102940.0,102930.0,0.15538215]
[1737184563889,1.585943,102940.0,102930.0,0.00538215]
[1737184564653,0.222543,102940.0,102930.0,0.00538215]
[1737184565272,0.1254,102940.0,102930.0,0.00538215]
[1737184565692,0.1254,102940.0,102930.0,0.10253515]
[1737184565898,0.222543,102940.0,102930.0,0.00538215]
[1737184566303,0.322543,102940.0,102930.0,0.00538215]
[1737184567119,0.1254,102940.0,102930.0,0.10253515]
[1737184567331,0.222543,102940.0,102930.0,0.00538215]
[1737184567536,0.1254,102940.0,102930.0,0.10253515]
[1737184567919,0.1254,102940.0,102930.0,0.00538215]
[1737184567920,0.222543,102940.0,102930.0,0.00538215]
[1737184568400,0.222543,102940.0,102930.0,0.10302295]
[1737184568401,0.1254,102940.0,102930.0,0.10302295]
[1737184568652,0.1254,102940.0,102930.0,0.10253515]
[1737184571041,0.10355097,102940.0,102930.0,0.10253515]
[1737184572601,0.05675097,102940.0,102930.0,0.10253515]
[1737184572845,0.05675097,102940.0,102930.0,0.10556986]
[1737184574562,0.60235097,102940.0,102930.0,0.10556986]
[1737184578140,0.60235097,102940.0,102930.0,0.3743371]
[1737184578141,0.5456,102940.0,102930.0,0.3743371]
[1737184579279,0.8646,102940.0,102930.0,0.3743371]
[1737184580462,0.8646,102940.0,102930.0,0.36948194]
[1737184580881,1.4102,102940.0,102930.0,0.39248194]
[1737184582787,1.4102,102940.0,102930.0,0.36948194]
[1737184583572,1.4102,102940.0,102930.0,0.37917081]
[1737184589959,1.41109881,102940.0,102930.0,0.37917081]
[1737184590153,1.41109881,102940.0,102930.0,0.36948194]
[1737184591155,1.41109881,102940.0,102930.0,0.39248194]
[1737184591355,1.41109881,102940.0,102930.0,0.42270404]
[1737184597394,1.3915354,102940.0,102930.0,0.42270404]
[1737184597531,1.37172297,102940.0,102930.0,0.42270404]
[1737184597731,1.35159098,102940.0,102930.0,0.42270404]
[1737184598556,1.28991573,102940.0,102930.0,0.42270404]
[1737184598766,1.2311013,102940.0,102930.0,0.42270404]
[1737184599221,1.0730863,102940.0,102930.0,0.46460404]
[1737184599425,1.0730863,102940.0,102930.0,0.86562104]
[1737184599605,1.0730863,102940.0,102930.0,0.60144604]
[1737184600434,0.95510034,102940.0,102930.0,0.60144604]
[1737184600820,0.91624234,102940.0,102930.0,0.60144604]
[1737184601576,0.91624234,102940.0,102930.0,0.6884205]
[1737184601730,0.91624234,102940.0,102930.0,0.68538579]
[1737184602933,0.91624234,102940.0,102930.0,0.54854379]
[1737184603150,0.91624234,102940.0,102930.0,1.15189179]
[1737184603706,0.90313695,102940.0,102930.0,1.28192987]
[1737184603906,0.87532795,102940.0,102930.0,1.28192987]
[1737184604114,0.80640035,102940.0,102930.0,1.2849634]
[1737184604522,0.26080035,102940.0,102930.0,1.2849634]
[1737184604722,0.22938035,102940.0,102930.0,1.1455284]
[1737184605051,0.19848035,102940.0,102930.0,1.1455284]
[1737184605442,0.09012435,102940.0,102930.0,1.1455284]
[1737184605642,0.07069535,102940.0,102930.0,1.1455284]
[1737184605852,0.07069535,102940.0,102930.0,1.14249487]
[1737184606887,3.5e-07,102940.0,102930.0,1.14249487]
[1737184607181,3.5e-07,102940.0,102930.0,0.67858187]
[1737184608403,3.5e-07,102940.0,102930.0,0.71740587]
[1737184608725,0.0787,102960.0,102940.0,0.173]
[1737184608931,0.0787,102960.0,102950.0,0.22637481]
[1737184609088,0.0787,102960.0,102950.0,0.23606368]
[1737184609488,0.25000659,102970.0,102960.0,0.270125]
[1737184609689,0.25000659,102970.0,102960.0,0.39958001]
[1737184610176,0.32870659,102970.0,102960.0,0.39958001]
[1737184610586,0.32870659,102970.0,102960.0,0.34636581]
[1737184611824,0.37670659,102970.0,102960.0,0.34636581]
[1737184612211,0.37670659,102970.0,102960.0,0.19636581]
[1737184612411,0.37670659,102970.0,102960.0,0.247125]
[1737184612801,0.37670659,102970.0,102960.0,0.097125]
[1737184613013,0.1235,102960.0,102950.0,0.291378]
[1737184613223,0.1235,102960.0,102950.0,0.40156589]
[1737184613618,0.1235,102960.0,102950.0,0.55156589]
[1737184615007,0.1235,102960.0,102950.0,0.55459985]
[1737184618088,0.1235,102960.0,102950.0,0.56428872]
[1737184619650,0.1235,102960.0,102950.0,0.59451725]
[1737184621052,0.1235,102960.0,102950.0,0.61751725]
[1737184621282,0.0774,102960.0,102950.0,0.61751725]
[1737184621706,0.2970054,102970.0,102960.0,0.120125]
[1737184621909,0.2970054,102970.0,102960.0,0.24959434]
[1737184622631,0.2509054,102970.0,102960.0,0.24959434]
[1737184624315,0.3283054,102970.0,102960.0,0.24959434]
[1737184624659,0.3283054,102970.0,102960.0,0.24215434]
[1737184626655,0.3775054,102970.0,102960.0,0.22659434]
[1737184627285,0.3775054,102970.0,102960.0,0.24586094]
[1737184628239,0.3775054,102970.0,102960.0,0.26886094]
[1737184631802,0.3775054,102970.0,102960.0,0.27570094]
[1737184634283,0.2509054,102970.0,102960.0,0.42570094]
[1737184636641,0.2509054,102970.0,102960.0,0.41886094]
[1737184636843,0.2509054,102970.0,102960.0,0.42570094]
[1737184637189,0.23343554,102970.0,102960.0,0.42570094]
[1737184637361,0.00089881,102970.0,102960.0,0.42570094]
[1737184637564,0.00089881,102970.0,102960.0,0.41670094]
[1737184638398,0.05019881,102970.0,102960.0,0.41670094]
[1737184638777,0.13269881,102970.0,102960.0,0.41670094]
[1737184641058,0.00202581,102970.0,102960.0,0.41670094]
[1737184644092,0.00202581,102970.0,102960.0,0.41650094]
[1737184644272,0.00202581,102970.0,102960.0,0.54653902]
[1737184645020,0.00202581,102970.0,102960.0,0.41650094]
[1737184645963,0.08472581,102970.0,102960.0,0.41650094]
[1737184648645,0.08472581,102970.0,102960.0,0.54653902]
[1737184649345,0.08472581,102970.0,102960.0,0.54696702]
[1737184649966,0.08472581,102970.0,102960.0,0.41692894]
[1737184651100,0.08472581,102970.0,102960.0,0.54696702]
[1737184651334,0.13182581,102970.0,102960.0,0.54696702]
[1737184653673,0.13182581,102970.0,102960.0,0.41692894]
[1737184654763,0.13182581,102970.0,102960.0,0.54696702]
[1737184655908,0.13182581,102970.0,102960.0,0.41692894]
[1737184657258,0.13182581,102970.0,102960.0,0.54696702]
[1737184658185,0.13182581,102970.0,102960.0,0.41692894]
[1737184659971,0.13182581,102970.0,102960.0,0.54696702]
[1737184662917,0.13182581,102970.0,102960.0,0.72022803]
[1737184664912,0.13182581,102970.0,102960.0,1.02314231]
[1737184665560,0.13182581,102970.0,102960.0,1.01650231]
[1737184665847,0.13182581,102970.0,102960.0,1.02314231]
[1737184666079,0.13182581,102970.0,102960.0,0.93594705]
[1737184667986,0.13182581,102970.0,102960.0,1.02319982]
[1737184668969,0.13182581,102970.0,102960.0,0.93594705]
[1737184676993,0.13182581,102970.0,102960.0,0.80590897]
[1737184678858,0.11182581,102970.0,102960.0,0.79926897]
[1737184679134,0.11182581,102970.0,102960.0,0.80570897]
[1737184680115,0.21657995,102990.0,102980.0,0.097106]
[1737184680292,0.21657995,102990.0,102980.0,0.25926421]
[1737184680497,0.21657995,102990.0,102980.0,0.23626421]
[1737184681075,0.00089964,102990.0,102980.0,0.38626421]
[1737184681291,0.00094991,102990.0,102980.0,0.38626421]
[1737184682184,0.08144991,102990.0,102980.0,0.38626421]
[1737184682344,0.16767583,102990.0,102980.0,0.38626421]
[1737184683106,0.21487583,102990.0,102980.0,0.38626421]
[1737184683517,0.21487583,102990.0,102980.0,0.39659164]
[1737184687691,0.21487583,102990.0,102980.0,0.38690277]
[1737184687853,0.34433022,102990.0,102980.0,0.25743343]
[1737184688849,0.51804405,102990.0,102980.0,0.25743343]
[1737184690045,0.64896042,102990.0,102980.0,0.25743343]
[1737184690291,0.64896042,102990.0,102980.0,0.28774495]
[1737184690857,0.64896042,102990.0,102980.0,0.38698576]
[1737184692208,0.3453641,102990.0,102980.0,0.38698576]
[1737184695228,0.21590971,102990.0,102980.0,0.38698576]
[1737184696299,0.3453641,102990.0,102980.0,0.38698576]
[1737184697394,0.21590971,102990.0,102980.0,0.38698576]
[1737184706331,0.21590971,102990.0,102980.0,0.40658431]
[1737184707544,0.21590971,102990.0,102980.0,0.38698576]
[1737184707759,0.12864991,102990.0,102980.0,0.38698576]
[1737184708341,0.12986363,102990.0,102980.0,0.38698576]
[1737184708562,0.12864991,102990.0,102980.0,0.38698576]
[1737184708994,0.73622022,102990.0,102980.0,0.38698576]
[1737184710155,0.51907793,102990.0,102980.0,0.38698576]
[1737184716387,0.21590971,102990.0,102980.0,0.38698576]
[1737184717649,0.12864991,102990.0,102980.0,0.38698576]
[1737184719572,0.3453641,102990.0,102980.0,0.38698576]
[1737184721812,0.21590971,102990.0,102980.0,0.38698576]
[1737184724634,0.51907793,102990.0,102980.0,0.38698576]
[1737184725923,0.21590971,102990.0,102980.0,0.38698576]
[1737184726907,0.51907793,102990.0,102980.0,0.23698576]
[1737184731124,0.51907793,102990.0,102980.0,0.38698576]
[1737184732347,0.21590971,102990.0,102980.0,0.38698576]
[1737184733390,0.12864991,102990.0,102980.0,0.39425742]
[1737184737129,0.12864991,102990.0,102980.0,0.41406238]
[1737184737554,0.21590971,102990.0,102980.0,0.41406238]
[1737184737753,0.21590971,102990.0,102980.0,0.39425742]
[1737184739108,0.27557546,102990.0,102980.0,0.39425742]
[1737184739519,0.40502985,102990.0,102980.0,0.39425742]
[1737184740743,0.79588597,102990.0,102980.0,0.39425742]
[1737184742118,0.89298197,102990.0,102980.0,0.13468918]
[1737184742380,0.89298197,102990.0,102980.0,0.10437766]
[1737184743941,0.70862617,102990.0,102980.0,0.10437766]
[1737184744144,0.70598362,102990.0,102980.0,0.10437766]
[1737184744387,0.80307962,102990.0,102980.0,0.10437766]
[1737184744610,0.70598362,102990.0,102980.0,0.10437766]
[1737184744835,0.90307962,102990.0,102980.0,0.10437766]
[1737184745676,0.80598362,102990.0,102980.0,0.10437766]
[1737184747717,0.74896042,102990.0,102980.0,0.10437766]
[1737184748292,0.83615342,102990.0,102980.0,0.10437766]
[1737184748477,0.89317662,102990.0,102980.0,0.10437766]
[1737184748915,0.99027262,102990.0,102980.0,0.10437766]
[1737184749373,0.80598362,102990.0,102980.0,0.10437766]
[1737184749584,0.90307962,102990.0,102980.0,0.10437766]
[1737184750063,1.00307962,102990.0,102980.0,0.10437766]
[1737184751944,0.90598362,102990.0,102980.0,0.10437766]
[1737184752146,1.00307962,102990.0,102980.0,0.10437766]
[1737184753232,0.96079442,102990.0,102980.0,0.10437766]
[1737184754498,0.6999114,102990.0,102980.0,0.10437766]
[1737184755337,0.6999114,102990.0,102980.0,0.00727166]
[1737184755540,0.96079442,102990.0,102980.0,0.00727166]
[1737184756761,0.86079442,102990.0,102980.0,0.00727166]
[1737184757736,0.5999114,102990.0,102980.0,0.00727166]
[1737184757964,0.59991721,102990.0,102980.0,0.00727166]
[1737184758617,0.86080023,102990.0,102980.0,0.00727166]
[1737184758766,0.76080023,102990.0,102980.0,0.00727166]
[1737184760815,0.49991721,102990.0,102980.0,0.00727166]
[1737184761256,0.59991721,102990.0,102980.0,0.00727166]
[1737184761458,0.49991721,102990.0,102980.0,0.00727166]
[1737184764038,0.67408509,102990.0,102980.0,0.00727166]
[1737184764246,0.83035491,102990.0,102980.0,0.00727166]
[1737184765460,0.69992776,102990.0,102980.0,0.00727166]
[1737184766564,0.317706,102980.0,102970.0,0.00769966]
[1737184766771,0.53100483,102980.0,102970.0,0.00769966]
[1737184766970,0.43100483,102980.0,102970.0,0.00769966]
[1737184767908,0.90980724,102980.0,102970.0,0.00769966]
[1737184768471,0.90980724,102980.0,102970.0,0.01073382]
[1737184768676,0.64864229,102980.0,102970.0,0.01073382]
[1737184769988,0.90980724,102980.0,102970.0,0.01073382]
[1737184770154,0.96683625,102980.0,102970.0,0.00346216]
[1737184770578,0.96683625,102980.0,102960.0,0.00769966]
[1737184770579,0.92213025,102980.0,102960.0,0.00769966]
[1737184770793,0.53222825,102970.0,102960.0,0.00769966]
[1737184770928,0.78101383,102970.0,102960.0,0.00769966]
[1737184771364,0.80401383,102970.0,102960.0,0.000428]
[1737184772071,1.06517878,102970.0,102960.0,0.000428]
[1737184772490,1.16441959,102970.0,102960.0,0.000428]
[1737184772726,1.06517878,102970.0,102960.0,0.000428]
[1737184774212,1.06517878,102970.0,102960.0,0.0003682]
[1737184774433,0.217725,102960.0,102950.0,0.0001852]
[1737184774706,0.43102383,102960.0,102950.0,0.0001852]
[1737184775162,0.1,102940.0,102930.0,0.30042911]
[1737184775406,0.1751,102940.0,102930.0,0.30042911]
[1737184775635,0.1251,102940.0,102930.0,0.30042911]
[1737184776315,0.12515023,102940.0,102930.0,0.30042911]
[1737184777271,0.12515023,102940.0,102930.0,0.29557324]
[1737184778437,0.22515023,102940.0,102930.0,0.29557324]
[1737184778642,0.10005023,102940.0,102930.0,0.29557324]
[1737184778843,5.023e-05,102940.0,102930.0,0.29557324]
[1737184779686,5.023e-05,102940.0,102930.0,0.66273193]
[1737184781078,5.023e-05,102940.0,102930.0,0.60570292]
[1737184781282,0.00126456,102940.0,102930.0,0.60570292]
[1737184783123,0.00126456,102940.0,102930.0,0.55450292]
[1737184783320,5.023e-05,102940.0,102930.0,0.55450292]
[1737184784161,5.023e-05,102940.0,102930.0,0.55753734]
[1737184785505,5.023e-05,102940.0,102930.0,0.55796534]
[1737184786026,0.00126456,102940.0,102930.0,0.55796534]
[1737184788048,0.10126456,102940.0,102930.0,0.45872453]
[1737184788268,0.39466558,102940.0,102930.0,0.01073408]
[1737184788475,0.34345125,102940.0,102930.0,0.01073408]
[1737184788704,0.44269206,102940.0,102930.0,0.01073408]
[1737184789777,0.54269206,102940.0,102930.0,0.01073408]
[1737184790206,0.54269206,102940.0,102930.0,0.00346242]
[1737184790582,0.99037876,102940.0,102930.0,0.00346242]
[1737184790786,0.38350899,102930.0,102920.0,0.00528555]
[1737184791009,0.59680782,102930.0,102920.0,0.00528555]
[1737184791205,0.49680782,102930.0,102920.0,0.00528555]
[1737184791429,0.55681538,102930.0,102920.0,0.00528555]
[1737184791688,0.55681538,102930.0,102920.0,0.0004287]
[1737184792317,0.70681538,102930.0,102920.0,0.0004287]
[1737184792464,0.1,102920.0,102910.0,0.00528525]
[1737184792664,0.51685061,102920.0,102910.0,0.00528525]
[1737184792871,0.5156356,102920.0,102910.0,0.0004284]
[1737184794382,0.73232788,102920.0,102910.0,0.0004284]
[1737184795173,0.88232788,102920.0,102910.0,0.0004284]
[1737184795379,0.98232788,102920.0,102910.0,0.0004284]
[1737184795654,1.15570732,102920.0,102910.0,0.0004284]
[1737184796994,1.37243162,102920.0,102910.0,0.0004284]
[1737184798169,1.28577392,102920.0,102910.0,0.0004284]
[1737184801988,1.37233683,102920.0,102910.0,0.0004284]
[1737184803975,1.39161435,102920.0,102910.0,0.0004284]
[1737184805381,1.40163909,102920.0,102910.0,0.0004284]
[1737184807492,1.08491479,102920.0,102910.0,0.0004284]
[1737184807775,0.95561253,102920.0,102910.0,0.0004284]
[1737184807924,0.70934975,102920.0,102900.0,0.00291174]
[1737184808134,0.18541973,102910.0,102900.0,0.00291174]
[1737184809227,0.13703279,102910.0,102900.0,0.00291174]
[1737184809408,0.23703279,102910.0,102900.0,0.10009274]
[1737184809612,0.1,102910.0,102900.0,0.10009274]
[1737184809830,0.15,102910.0,102900.0,0.10009274]
[1737184811041,0.4768,102910.0,102900.0,0.10494959]
[1737184812057,0.4268,102910.0,102900.0,0.10494959]
[1737184813230,0.3268,102910.0,102900.0,0.54022319]
[1737184813360,0.3268,102910.0,102900.0,0.4531904]
[1737184813969,0.3268,102910.0,102900.0,0.46046206]
[1737184814403,0.3268,102910.0,102900.0,0.45560521]
[1737184820102,0.3268,102910.0,102900.0,0.45603341]
[1737184820303,0.32769922,102910.0,102900.0,0.45603341]
[1737184823359,0.32769922,102910.0,102900.0,0.48626211]
[1737184823564,0.32769922,102910.0,102900.0,0.5732949]
[1737184824527,0.32769922,102910.0,102900.0,0.5430662]
[1737184824886,0.32769922,102910.0,102900.0,0.57329138]
[1737184825288,0.32769922,102910.0,102900.0,0.5430662]
[1737184825994,1.33655937,102920.0,102910.0,0.417172]
[1737184826205,1.22169856,102920.0,102910.0,0.61313447]
[1737184826407,1.22169856,102920.0,102910.0,0.64334553]
[1737184827613,1.22169856,102920.0,102910.0,0.61313447]
[1737184827928,1.22169856,102920.0,102910.0,0.62040613]
[1737184829014,0.00094924,102940.0,102930.0,0.247153]
[1737184829216,0.00216359,102940.0,102930.0,0.40728268]
[1737184829491,0.00094924,102940.0,102930.0,0.49431547]
[1737184829707,0.00094924,102940.0,102930.0,0.56331547]
[1737184830432,0.00094924,102940.0,102930.0,0.70034826]
[1737184831153,0.00094924,102940.0,102930.0,0.70761992]
[1737184831353,0.00094924,102940.0,102930.0,0.73776448]
[1737184831545,0.00094924,102940.0,102930.0,0.70761992]
[1737184833283,0.00094924,102940.0,102930.0,0.7267306]
[1737184833916,0.00094924,102940.0,102930.0,0.73663907]
[1737184836104,0.00094924,102940.0,102930.0,0.76672313]
[1737184838750,0.00519969,102940.0,102930.0,0.76672313]
[1737184838934,0.00519969,102940.0,102930.0,1.38838213]
[1737184838935,2.4e-07,102940.0,102930.0,1.38838213]
[1737184839132,0.00089881,102970.0,102960.0,0.247125]
[1737184839349,0.00089881,102970.0,102960.0,0.46608747]
[1737184839811,0.00089881,102970.0,102960.0,0.55312026]
[1737184840034,0.00089881,102970.0,102960.0,0.46608747]
[1737184840393,0.00089881,102970.0,102960.0,0.55312026]
[1737184840593,0.00089881,102970.0,102960.0,0.46608747]
[1737184840814,0.00089881,102970.0,102960.0,0.47335913]
[1737184843238,0.00089881,102970.0,102960.0,0.48322516]
[1737184844244,0.00089881,102970.0,102960.0,0.57025795]
[1737184844446,0.00089881,102970.0,102960.0,0.62145795]
[1737184844669,0.00089881,102970.0,102960.0,0.53442516]
[1737184844867,0.00089881,102970.0,102960.0,0.62145795]
[1737184845064,0.00089881,102970.0,102960.0,0.53442516]
[1737184846608,0.00089881,102970.0,102960.0,0.62145795]
[1737184847013,8.1e-07,102970.0,102960.0,0.69052169]
[1737184847215,8.1e-07,102970.0,102960.0,0.72057]
[1737184847430,8.1e-07,102970.0,102960.0,0.76937]
[1737184847659,0.00089964,102990.0,102970.0,0.173]
[1737184847841,0.00089964,102990.0,102980.0,0.31306594]
[1737184848049,0.00089964,102990.0,102980.0,0.32226847]
[1737184849623,0.00089964,102990.0,102980.0,0.32954013]
[1737184850240,0.00089964,102990.0,102980.0,0.47954013]
[1737184850450,0.00089964,102990.0,102980.0,0.52954013]
[1737184851275,0.00089964,102990.0,102980.0,1.17584913]
[1737184851550,0.00089964,102990.0,102980.0,0.98532913]
[1737184852431,0.00089964,102990.0,102980.0,1.07236192]
[1737184852577,0.00089964,102990.0,102980.0,0.98532913]
[1737184852782,0.00089964,102990.0,102980.0,0.97912913]
[1737184852981,0.00089964,102990.0,102980.0,0.52954013]
[1737184853201,0.00089964,102990.0,102980.0,0.53926163]
[1737184854211,0.00089964,102990.0,102980.0,0.48306163]
[1737184854387,0.00089964,102990.0,102980.0,0.53922163]
[1737184856415,0.00089964,102990.0,102980.0,0.55855276]
[1737184856627,0.00089964,102990.0,102980.0,0.58858648]
[1737184857081,0.08299922,103030.0,103020.0,0.270068]
[1737184857267,0.43947693,103040.0,103030.0,0.270059]
[1737184857268,0.52157693,103040.0,103030.0,0.270059]
[1737184857413,0.52157693,103040.0,103030.0,0.4563326]
[1737184857632,0.52157693,103040.0,103030.0,0.49297582]
[1737184857633,0.47258457,103040.0,103030.0,0.49297582]
[1737184858050,0.47258457,103040.0,103030.0,0.50024748]
[1737184858255,0.47258457,103040.0,103030.0,0.46360426]
[1737184859028,0.08260764,103040.0,103030.0,0.46360426]
[1737184861897,0.08260764,103040.0,103030.0,0.48334891]
[1737184862424,6.4e-07,103040.0,103030.0,0.48334891]
[1737184862667,6.4e-07,103040.0,103030.0,0.58025442]
[1737184862885,6.4e-07,103040.0,103030.0,0.66143256]
[1737184863287,0.00129943,103070.0,103060.0,0.27003]
[1737184863488,0.00145167,103070.0,103060.0,0.47215247]
[1737184863638,0.00145167,103070.0,103060.0,0.50385294]
[1737184864348,0.00145167,103070.0,103060.0,0.5111246]
[1737184866157,0.00145167,103070.0,103060.0,0.47942413]
[1737184868403,0.00145167,103070.0,103060.0,0.51648402]
[1737184868812,0.00145167,103070.0,103060.0,0.54818449]
[1737184870368,0.00145167,103070.0,103060.0,0.55822485]
[1737184870702,0.00145167,103070.0,103060.0,0.52652438]